[Event "ChessKid Cup Div-I 2023"]
[Site "Online"]
[Date "2023.05.22"]
[Round "1.5"]
[White "Kollars, Dmitrij"]
[Black "Firouzja, Alireza"]
[Result "1-0"]
[ECO "C67"]
[WhiteElo "2607"]
[BlackElo "2785"]
[Annotator "TA"]
[PlyCount "95"]
[EventDate "2023.05.21"]
[EventType "k.o."]
[EventCountry "NET"]
[SourceTitle "playchess.com"]
[Source "ChessBase"]
[SourceQuality "1"]
[TimeControl "900+3"]

{[%evp 16,95,25,24,19,22,19,12,15,26,28,25,25,18,35,22,39,23,37,25,56,13,20,10,59,57,59,54,61,51,47,59,56,32,32,16,24,14,12,24,220,216,216,222,255,217,208,208,187,113,114,102,243,243,449,293,272,8,8,8,12790,8482,29989,29987,29992,29993,29993,29994,29994,0,0,0,29994,29995,29995,29996,29996,29997,29997,29998,29998,29996]} 1. e4 {[%emt 0:00:07]} e5 {[%emt 0:06:47]} 2. Nf3 {[%emt 0:00:04]} Nc6 {[%emt 0:00:05]} 3. Bb5 {[%emt 0:00:06]} Nf6 {[%emt 0:00:04]} 4. O-O {[%emt 0:00:13][%cal Bh1f1,Bf1e1,Be1e5,Be5e3][%mdl 32]} Nxe4 {[%emt 0:00:04]} 5. Re1 {[%emt 0:00:06]} Nd6 {[%emt 0:00:04]} 6. Nxe5 {[%emt 0:00:04]} Be7 {[%emt 0:00:05]} 7. Bf1 {[%emt 0:00:05]} Nxe5 {[%emt 0:00:18]} 8. Rxe5 {[%emt 0:00:03]} O-O {[%emt 0:00:04]} 9. d4 {[%emt 0:00:06]} Ne8 {[%emt 0:00:22] C67: Ruy Lopez: Berlin Defence: 4 0-0 Nxe4.} 10. d5 {[%emt 0:00:12] Black is weak on the light squares} Bc5 {[%emt 0:00:09][%cal Oc5f2]} 11. Be3 {[%emt 0:00:20] [#]} Bxe3 $146 {[%emt 0:00:23] The position is equal.} ({Predecessor:} 11... d6 12. Bxc5 dxc5 13. Nc3 Nd6 14. Qf3 Bd7 15. Rae1 Re8 16. Rxe8+ Bxe8 17. Ne4 b6 {½-½ Kovacevic,A (2495)-Sanal,V (2590) Belgrade Gligoric Trophy Gp-C rapid 2023 (5)}) 12. Rxe3 {[%emt 0:00:03]} d6 {[%emt 0:00:10]} 13. Nc3 {[%emt 0:00:08]} Nf6 {[%emt 0:00:10]} 14. Qd4 {[%emt 0:00:30]} Bd7 {[%emt 0:00:09]} 15. Rae1 {[%emt 0:00:09]} Re8 {[%emt 0:00:05]} (15... Ng4 {seems wilder.} 16. Rg3 Ne5 17. f4 Qh4) 16. h3 {[%emt 0:00:11]} a6 {[%emt 0:00:21]} 17. a4 {[%emt 0:00:23]} h6 {[%emt 0:00:14]} 18. a5 {[%emt 0:00:08]} Rxe3 {[%emt 0:00:14]} 19. Rxe3 {[%emt 0:00:03]} c5 {[%emt 0:00:24]} (19... Bf5 $11 {might be stronger.}) 20. dxc6 $1 $14 {[%emt 0:00:13]} Bxc6 {[%emt 0:00:03]} 21. b4 {[%emt 0:00:03]} Qd7 {[%emt 0:00:07]} 22. Ne2 {[%emt 0:01:11][%cal Bc3e2,Be2f4,Bf4h5][%mdl 32] White is more active.} Re8 {[%emt 0:00:09]} 23. Rxe8+ {[%emt 0:01:27]} Nxe8 {[%emt 0:00:04]} 24. Nf4 {[%emt 0:00:03]} Nc7 {[%emt 0:00:24]} 25. c4 {[%emt 0:01:00][%cal Bc2c4,Bc4b5,Bb5a6][%mdl 32]} d5 {[%emt 0:00:20]} ({Don't take} 25... Ne6 26. Nxe6 Qxe6 27. Qb6 $18) 26. Nh5 {[%emt 0:00:13][%csl Gh5][%cal Rd4g7]} (26. cxd5 {simplifies} Nxd5 27. Nxd5 Qxd5 28. Qxd5 Bxd5 29. f4) 26... Ne6 {[%emt 0:00:09]} 27. Qg4 {[%emt 0:00:04] Strongly threatening Nf6+.} Qe7 {[%emt 0:00:10] Prevents Nf6+} (27... Kh8 $11) 28. b5 $18 {[%emt 0:00:05]} axb5 {[%emt 0:01:10]} 29. cxb5 {[%emt 0:00:03]} Be8 {[%emt 0:00:06]} 30. a6 {[%emt 0:00:18]} bxa6 {[%emt 0:00:06]} 31. bxa6 {[%emt 0:00:03]} Bc6 {[%emt 0:00:03]} 32. f4 {[%emt 0:00:56]} (32. Ng3 $18) 32... Qc5+ $16 {[%emt 0:00:22]} 33. Kh2 {[%emt 0:00:05]} Qd4 {[%emt 0:00:14] [#]} (33... Qe3 $16 34. f5 Qe5+ 35. Qg3 Qxf5) 34. Qg3 $1 $18 {[%emt 0:00:18] Threatens to win with f5.} (34. f5 Qxg4 35. hxg4 Nc5 $16) 34... Qa1 $2 {[%emt 0:00:34]} (34... Qd1 {might work better.}) 35. Bd3 {[%emt 0:00:30] Hoping for f5.} Nc5 {[%emt 0:00:11][%cal Oc5d3]} 36. f5 $2 {[%emt 0:01:05]} (36. Be2 $18) 36... Nxd3 $1 $11 {[%emt 0:00:26]} 37. Qxd3 {[%emt 0:00:06][%mdl 4096] Endgame And now Qg3 would win. KQB-KQN} Kf8 $2 {[%emt 0:00:43][%mdl 8192]} (37... Qe5+ $11 38. Qg3 f6) 38. Qg3 $18 {[%emt 0:00:30] Intending Qd6+ and mate.} Qxa6 {[%emt 0:00:15]} 39. f6 {[%emt 0:00:30]} g5 {[%emt 0:00:40] [#]} 40. Qd6+ $1 {[%emt 0:00:14]} ({Stronger than} 40. Qb8+ Be8 $11) 40... Kg8 {[%emt 0:00:04]} 41. Qb8+ {[%emt 0:00:50]} Kh7 {[%emt 0:00:04]} 42. Qb1+ {[%emt 0:00:03]} Kg8 {[%emt 0:00:05] aiming for ...Qb5.} 43. Qb8+ {[%emt 0:00:15]} Kh7 {[%emt 0:00:04]} 44. Qf8 {[%emt 0:00:03][%csl Gf6,Gh5][%cal Rf8g7] White mates.} Kg6 {[%emt 0:00:03]} 45. Ng3 {[%emt 0:00:07][%csl Gf6][%cal Rf8g7]} Kxf6 {[%emt 0:00:13]} 46. Qd6+ {[%emt 0:00:04]} ({Weaker is} 46. Qxh6+ Ke7 $18) 46... Kg7 {[%emt 0:00:04]} 47. Nf5+ {[%emt 0:00:04][%mdl 64] Deflection, Double Attack} Kg8 {[%emt 0:00:05]} 48. Qf6 {[%emt 0:00:14] Weighted Error Value: White=0.37/Black=0.45} 1-0

[Event "ChessKid Cup Div-I 2023"]
[Site "Online"]
[Date "2023.05.23"]
[Round "2.1"]
[White "Caruana, Fabiano"]
[Black "Abdusattorov, Nodirbek"]
[Result "1/2-1/2"]
[ECO "D34"]
[WhiteElo "2764"]
[BlackElo "2731"]
[Annotator "TA"]
[PlyCount "94"]
[EventDate "2023.05.21"]
[EventType "k.o."]
[EventCountry "NET"]
[SourceTitle "playchess.com"]
[Source "ChessBase"]
[SourceQuality "1"]
[TimeControl "900+3"]

{[%evp 24,94,31,24,26,17,21,16,17,0,25,15,16,16,19,18,22,20,43,40,23,18,27,22,83,18,13,-43,0,0,17,0,0,0,16,16,16,16,29,30,40,39,38,17,17,17,17,17,17,6,16,8,44,0,0,0,0,0,0,0,0,0,8,0,0,0,0,0,0,0,0,0,0]} 1. d4 {[%emt 0:00:04]} d5 {[%emt 0:00:07]} 2. Nf3 {[%emt 0:00:02]} Nf6 {[%emt 0:00:01]} 3. g3 {[%emt 0:00:01]} c5 {[%emt 0:00:07]} 4. Bg2 {[%emt 0:00:03]} e6 {[%emt 0:00:10]} 5. O-O {[%emt 0:00:09]} Be7 {[%emt 0:00:06]} 6. dxc5 {[%emt 0:00:39]} Bxc5 {[%emt 0:00:04]} 7. c4 {[%emt 0:00:06]} O-O {[%emt 0:00:01]} 8. cxd5 {[%emt 0:01:05]} exd5 {[%emt 0:00:00]} 9. Nc3 {[%emt 0:00:13]} Nc6 {[%emt 0:00:03]} 10. Na4 {[%emt 0:00:23]} Be7 {[%emt 0:00:47]} 11. Be3 {[%emt 0:00:03]} Bg4 {[%emt 0:00:02]} 12. Rc1 {[%emt 0:00:12]} Re8 {[%emt 0:00:18]} 13. h3 {[%emt 0:00:22]} Bh5 {[%emt 0:00:06] D34: Tarrasch Defence: 6 g3 Nf6 7 Bg2 Be7.} 14. Nd4 {[%emt 0:00:41]} Qd7 {[%emt 0:00:57]} 15. Nxc6 {[%emt 0:01:04]} bxc6 {[%emt 0:00:03] [#]} 16. Bd4 $146 {[%emt 0:02:07]} ({Predecessor:} 16. Bc5 Bxe2 17. Qxe2 Bxc5 18. Nxc5 Rxe2 19. Nxd7 Nxd7 20. Rxc6 Nf6 21. Rfc1 Kf8 22. R6c2 Rxc2 23. Rxc2 {1-0 Meins,G (2439)-Fiebig,T (2401) Bundesliga 1415 2014 (7.8)}) 16... Bf8 {[%emt 0:02:29]} 17. Re1 {[%emt 0:00:09]} Ne4 {[%emt 0:00:14]} 18. Nc5 {[%emt 0:00:44]} Bxc5 {[%emt 0:00:04]} 19. Bxc5 {[%emt 0:00:00]} Bg6 {[%emt 0:01:17]} 20. Qa4 {[%emt 0:00:16]} h5 {[%emt 0:00:18][%cal Oh5h4]} 21. Bd4 {[%emt 0:00:09] A strong pair of Bishops.} Re6 {[%emt 0:00:22]} 22. h4 {[%emt 0:01:22]} Bf5 {[%emt 0:00:11] Prevents Bh3} 23. Bf3 {[%emt 0:00:04]} Bg4 {[%emt 0:00:49]} (23... Qc7 $11 24. Be3 (24. Bxh5 $2 Nxg3 25. Bf3 Rg6 $19) 24... Rg6) 24. Bxg4 {[%emt 0:00:07]} (24. Bxe4 $16 dxe4 25. b3) 24... hxg4 $11 {[%emt 0:00:02]} 25. Kg2 {[%emt 0:00:01]} ({Better is} 25. Rc2 $11) 25... a6 {[%emt 0:02:47]} (25... Qb7 $5 {[%cal Rc6c5]}) 26. f3 {[%emt 0:01:31]} Nd2 {[%emt 0:00:04][%cal Oe6e2]} 27. Qc2 {[%emt 0:00:01]} ({Of course not} 27. fxg4 Rae8 28. Qd1 (28. Qxa6 $2 c5 $19) 28... Nc4 $17) (27. Bf2 {simplifies} Rxe2 28. Qxg4 Qxg4 29. fxg4 Rae8 30. Rxe2 Rxe2 31. Re1) 27... Nc4 {[%emt 0:01:15]} 28. b3 $1 {[%emt 0:00:04]} ({Don't play} 28. fxg4 Re4 29. b3 Rxd4 $17) 28... Ne3+ {[%emt 0:00:32]} 29. Bxe3 {[%emt 0:00:01]} Rxe3 {[%emt 0:00:00]} 30. Qxc6 {[%emt 0:00:07]} gxf3+ {[%emt 0:00:05]} 31. Kf2 $1 {[%emt 0:00:04]} (31. exf3 $2 {too greedy.} Qxc6 32. Rxc6 Rxe1 $19) 31... Qxc6 {[%emt 0:00:09]} 32. Rxc6 {[%emt 0:00:01][%mdl 4096] Endgame KRR-KRR} Rae8 {[%emt 0:00:01] [#]} 33. Rc8 $1 {[%emt 0:00:12][%mdl 64] Deflection} Rxc8 {[%emt 0:00:35]} 34. Kxe3 {[%emt 0:00:01] KR-KR} Rc2 {[%emt 0:00:06]} 35. exf3 {[%emt 0:00:03] Re2 is the strong threat.} Rxa2 {[%emt 0:00:01]} 36. Rd1 {[%emt 0:00:03]} Ra3 {[%emt 0:00:06]} 37. Rd3 {[%emt 0:00:02]} a5 {[%emt 0:00:01]} 38. h5 {[%emt 0:00:39]} Kh7 {[%emt 0:00:14] The position is equal.} 39. g4 {[%emt 0:00:09]} g6 {[%emt 0:00:03]} 40. hxg6+ {[%emt 0:00:11]} Kxg6 {[%emt 0:00:03]} 41. Kd4 {[%emt 0:00:14]} a4 {[%emt 0:00:02]} 42. bxa4 {[%emt 0:00:00]} Rxa4+ {[%emt 0:00:01]} 43. Kxd5 {[%emt 0:00:00]} f5 {[%emt 0:00:02]} 44. gxf5+ {[%emt 0:00:02]} Kxf5 {[%emt 0:00:01]} 45. Rd4 {[%emt 0:00:01]} Rxd4+ {[%emt 0:00:01]} 46. Kxd4 {[%emt 0:00:00]} Kf4 {[%emt 0:00:00]} 47. Kd3 {[%emt 0:00:01]} Kxf3 {[%emt 0:00:00] Weighted Error Value: White=0.11 (very precise) /Black=0.10 (very precise)} 1/2-1/2

[Event "ChessKid Cup Div-I 2023"]
[Site "Online"]
[Date "2023.05.23"]
[Round "2.1"]
[White "Van Foreest, Jorden"]
[Black "Kollars, Dmitrij"]
[Result "0-1"]
[ECO "D11"]
[WhiteElo "2689"]
[BlackElo "2607"]
[Annotator "TA"]
[PlyCount "98"]
[EventDate "2023.05.21"]
[EventType "k.o."]
[EventCountry "NET"]
[SourceTitle "playchess.com"]
[Source "ChessBase"]
[SourceQuality "1"]
[TimeControl "900+3"]

{[%evp 9,98,6,14,20,47,46,49,12,7,8,17,16,17,15,11,14,6,22,45,43,39,46,49,24,46,48,58,36,95,30,25,20,34,18,44,31,37,16,6,18,22,0,11,-46,-43,-48,-73,-106,-112,-135,-127,-164,0,0,0,-113,-113,-139,-138,-152,-162,-169,-146,-525,-475,-564,-558,-558,-543,-709,-706,-706,-697,-693,-644,-572,-565,-535,-546,-644,-513,-1110,-598,-660,-654,-627,-620,-716,-678,-684,-652]} 1. d4 {[%emt 0:00:04]} d5 {[%emt 0:00:09]} 2. c4 {[%emt 0:00:02]} c6 {[%emt 0:00:03]} 3. Nf3 {[%emt 0:00:02]} Nf6 {[%emt 0:00:01]} 4. Qc2 {[%emt 0:00:00]} g6 {[%emt 0:00:07]} 5. e3 {[%emt 0:00:06]} Bg7 {[%emt 0:00:22]} 6. Be2 {[%emt 0:00:01] D11: Slav Defence: 3 Nf3 sidelines and 3...Nf6 4 e3 Bg4.} c5 $5 {[%emt 0:01:25][%mdl 4] A promising side line.} 7. cxd5 {[%emt 0:00:10]} (7. dxc5 O-O $11) 7... cxd4 {[%emt 0:00:02]} 8. Nxd4 {[%emt 0:00:12] Threatening e4. White is slightly better.} O-O {[%emt 0:00:22]} 9. O-O {[%emt 0:00:03]} Nxd5 {[%emt 0:00:03]} 10. Rd1 {[%emt 0:00:01]} Qb6 {[%emt 0:00:30] [#]} 11. Nc3 $146 {[%emt 0:00:38]} ({Predecessor:} 11. Qc4 Nf6 12. Nc3 Bd7 13. Na4 Qa6 14. Qxa6 Nxa6 15. Nb5 Rfc8 16. Bd2 Ne4 17. Be1 {½-½ Predke,A (2666)-Ponomariov,R (2631) FIDE Grand Swiss 2021 (4)}) 11... Nb4 {[%emt 0:00:52]} 12. Qb3 {[%emt 0:00:15]} N8c6 {[%emt 0:00:54][%cal Rc6d4]} 13. a3 {[%emt 0:01:05]} Nxd4 {[%emt 0:00:27]} 14. exd4 {[%emt 0:00:04]} Nc6 {[%emt 0:00:01]} 15. Qxb6 {[%emt 0:00:01]} axb6 {[%emt 0:00:00]} 16. Be3 {[%emt 0:00:09]} Bf5 {[%emt 0:02:11]} 17. Rac1 {[%emt 0:00:06]} h5 {[%emt 0:01:01]} 18. h3 {[%emt 0:00:02]} h4 {[%emt 0:00:01]} ({Better is} 18... Rfd8 $14) 19. Bg4 {[%emt 0:03:02]} (19. Nb5 $16) 19... Bxg4 $11 {[%emt 0:00:57]} 20. hxg4 {[%emt 0:00:01]} e6 {[%emt 0:00:00]} 21. f3 {[%emt 0:01:32]} Na5 {[%emt 0:00:16]} 22. Ne4 {[%emt 0:00:16]} Rfc8 {[%emt 0:00:32]} 23. Bf2 {[%emt 0:00:19]} Rxc1 {[%emt 0:00:13]} 24. Rxc1 {[%emt 0:00:01]} Nc6 {[%emt 0:00:00]} 25. g5 {[%emt 0:00:40]} Rd8 {[%emt 0:00:30]} 26. Nf6+ {[%emt 0:00:13]} (26. Kh2 $11) 26... Bxf6 $15 {[%emt 0:00:12]} 27. gxf6 {[%emt 0:00:00][%mdl 4096] Endgame KRB-KRN} g5 $1 {[%emt 0:00:00][%cal Bg6g5,Bg5g4,Bg4h3,Bh3h2][%mdl 32]} (27... Nxd4 28. Bxd4 Rxd4 29. Rc8+ Kh7 30. Rc7 $14) 28. Be3 {[%emt 0:00:32]} Rd5 {[%emt 0:00:03]} (28... Nxd4 $6 29. Rc4 Nf5 30. Bxg5 $11) 29. a4 {[%emt 0:01:03][%cal Ba3a4,Ba4a5][%mdl 32]} Kh7 $1 {[%emt 0:00:29]} 30. b4 {[%emt 0:00:49]} b5 $2 {[%emt 0:00:28]} ({Not} 30... Nxd4 31. Rc4 Nc6 32. Rg4 $11) ({Black should try} 30... Nxb4 $19 {And now ...Kg6 would win.} 31. Rc7 Kg6 32. Rxb7 Rd8) 31. a5 $1 $11 {[%emt 0:00:06][%cal Oa5a6] Strongly threatening a6!} Nd8 {[%emt 0:01:30]} (31... Nxb4 $5 32. Rc7 $8 Kg6 $11) 32. f4 {[%emt 0:01:06]} (32. Rc7 $11 {remains equal.}) 32... g4 $1 $17 {[%emt 0:00:06]} 33. Kf2 {[%emt 0:00:36] [#]} Kg6 $1 {[%emt 0:00:01]} 34. Rh1 {[%emt 0:00:06] [#]} Rh5 {[%emt 0:00:17]} ({And not} 34... Kxf6 35. Rxh4 Nc6 36. Bd2 $11) 35. Rc1 {[%emt 0:01:28]} Kxf6 {[%emt 0:00:11]} 36. Ke2 $2 {[%emt 0:00:01][%mdl 8192] White does not recover from this.} (36. Rc7 $17 {is a better chance.}) 36... h3 $19 {[%emt 0:00:09] Black is clearly winning.} 37. gxh3 {[%emt 0:00:18]} gxh3 {[%emt 0:00:00]} ({Stronger than} 37... Rxh3 38. Rc5 $11) 38. Kf3 {[%emt 0:00:35]} h2 {[%emt 0:00:05]} 39. Rh1 {[%emt 0:00:01]} Kf5 {[%emt 0:00:24]} 40. Bf2 {[%emt 0:00:24]} Nc6 {[%emt 0:00:03]} 41. Bg3 {[%emt 0:00:00]} Nxd4+ {[%emt 0:00:04]} 42. Kf2 {[%emt 0:00:00]} Nc6 {[%emt 0:00:25]} 43. Bxh2 {[%emt 0:00:02]} Nxb4 {[%emt 0:00:03] Hoping for ...Nd5.} 44. Kg3 {[%emt 0:00:07]} Nd5 {[%emt 0:00:05]} 45. Rc1 {[%emt 0:00:13]} (45. Rb1 $142 b4 46. Bg1) 45... f6 {[%emt 0:00:18]} 46. Rc5 {[%emt 0:00:05]} b4 {[%emt 0:00:00]} 47. Bg1 {[%emt 0:00:10]} Rh7 {[%emt 0:00:04]} 48. Rb5 {[%emt 0:00:15]} Rg7+ {[%emt 0:00:05]} 49. Kf2 {[%emt 0:00:02]} Kxf4 {[%emt 0:00:11] Weighted Error Value: White=0.47/Black=0.19 (very precise)} 0-1

[Event "ChessKid Cup Div-I 2023"]
[Site "Online"]
[Date "2023.05.23"]
[Round "2.2"]
[White "Abdusattorov, Nodirbek"]
[Black "Caruana, Fabiano"]
[Result "1-0"]
[ECO "E20"]
[WhiteElo "2731"]
[BlackElo "2764"]
[Annotator "TA"]
[PlyCount "81"]
[EventDate "2023.05.21"]
[EventType "k.o."]
[EventCountry "NET"]
[SourceTitle "playchess.com"]
[Source "ChessBase"]
[SourceQuality "1"]
[TimeControl "900+3"]

{[%evp 15,81,-38,-35,-30,41,27,39,11,28,9,68,67,67,67,82,93,98,87,96,96,117,81,143,121,113,102,124,85,116,116,121,109,122,114,114,110,142,142,145,161,215,208,215,214,214,213,215,214,234,207,260,260,260,251,421,444,467,400,534,527,466,418,612,604,589,600,866,612]} 1. d4 {[%emt 0:00:04]} Nf6 {[%emt 0:00:05]} 2. c4 {[%emt 0:00:02]} e6 {[%emt 0:00:02]} 3. Nf3 {[%emt 0:00:02]} d5 {[%emt 0:00:01]} 4. Nc3 {[%emt 0:00:01]} Bb4 {[%emt 0:00:01]} 5. g3 {[%emt 0:00:02]} O-O {[%emt 0:00:07]} 6. Bg2 {[%emt 0:00:01]} dxc4 {[%emt 0:00:03]} 7. O-O {[%emt 0:00:02]} Nc6 {[%emt 0:00:03]} 8. Re1 {[%emt 0:00:01]} Rb8 {[%emt 0:01:10]} 9. a3 $1 {[%emt 0:00:04][%mdl 4] is more profitable than 9.e4 at the moment. E20: Nimzo-Indian: 4 g3 and 4 f3.} Bd6 {[%emt 0:00:47]} ({Black should play} 9... Ba5 $11) 10. Qa4 $14 {[%emt 0:00:50]} e5 {[%emt 0:01:27] [#]} 11. dxe5 $146 {[%emt 0:02:56] White is slightly better.} ({Predecessor:} 11. d5 Nd4 12. Nxd4 exd4 13. Qxa7 dxc3 14. Qxb8 Be5 15. bxc3 Bxc3 16. Bf4 Nxd5 17. Rad1 Bxe1 18. Bxd5 {1-0 Kindermann,S (2455)-Suba,M (2490) Dortmunder Schachtage-09 1981}) 11... Nxe5 {[%emt 0:00:01][%cal Ob7b5]} 12. Qxa7 {[%emt 0:00:02]} Bg4 {[%emt 0:02:16]} (12... Be6 $11) 13. Nxe5 {[%emt 0:01:07]} Bxe5 {[%emt 0:00:00]} 14. Qc5 {[%emt 0:00:21]} Bd4 {[%emt 0:03:14]} 15. Qxc4 {[%emt 0:00:13]} Be6 {[%emt 0:00:03]} 16. Qd3 {[%emt 0:01:43]} Ng4 {[%emt 0:00:02]} 17. Rf1 {[%emt 0:00:45]} b5 {[%emt 0:01:12]} 18. Bf4 {[%emt 0:01:41]} ({Of course not} 18. Nxb5 $6 Bxf2+ 19. Rxf2 Qxd3 20. exd3 Nxf2 21. Kxf2 Rxb5 $11) 18... Bc4 {[%emt 0:00:58]} (18... g5 $142) 19. Qf5 {[%emt 0:00:44]} Qc8 {[%emt 0:00:37]} 20. Qxc8 {[%emt 0:00:11]} (20. Qc2 {looks sharper.} Qe6 21. Bxc7 Rbe8 22. Qd2) 20... Rbxc8 {[%emt 0:00:03]} 21. h3 {[%emt 0:01:17]} Nf6 {[%emt 0:00:11]} 22. Rfc1 {[%emt 0:00:08]} Nh5 {[%emt 0:00:19]} 23. e3 {[%emt 0:00:17]} Nxf4 {[%emt 0:00:03]} 24. gxf4 {[%emt 0:00:10]} ({Much less strong is} 24. exd4 Nxg2 25. Kxg2 c6 $14) 24... Bf6 {[%emt 0:00:01]} 25. Bf1 {[%emt 0:00:21]} Rb8 {[%emt 0:00:37]} 26. Bxc4 {[%emt 0:00:34]} bxc4 {[%emt 0:00:00]} 27. Ra2 {[%emt 0:00:00]} Rfd8 {[%emt 0:00:05]} (27... Rb3 $142 28. Na4 Ra8 29. Rxc4 h5) 28. Ne4 $18 {[%emt 0:00:24]} Bxb2 {[%emt 0:00:20]} 29. Rxc4 {[%emt 0:00:01]} f5 {[%emt 0:00:08]} 30. Ng5 {[%emt 0:00:06]} Rd7 {[%emt 0:00:33]} 31. a4 {[%emt 0:00:07][%cal Ba3a4,Ba4a5,Ba5a6][%mdl 32]} Bf6 {[%emt 0:00:05]} 32. Ne6 {[%emt 0:00:24]} Rb7 {[%emt 0:00:27]} 33. a5 {[%emt 0:00:05] Strongly threatening a6.} Ra7 {[%emt 0:00:15]} 34. Rc6 {[%emt 0:00:24]} Kf7 $2 {[%emt 0:00:17] [#]} (34... Rd6 35. Rxd6 (35. Rxc7 Ra8 $16) 35... cxd6) 35. a6 {[%emt 0:00:04]} Bd8 {[%emt 0:00:12]} 36. Rb2 {[%emt 0:00:26]} Be7 {[%emt 0:00:01]} 37. Nd4 {[%emt 0:00:29]} Rd6 {[%emt 0:00:13]} 38. Ra2 {[%emt 0:00:08]} g6 {[%emt 0:00:16]} (38... Rd5 $142 39. Rc1 Rd6) 39. Nb5 {[%emt 0:00:18][%csl LRa7,LRc7,LRd6] White is clearly winning.} Rxc6 {[%emt 0:00:14]} 40. Nxa7 {[%emt 0:00:01]} Rb6 {[%emt 0:00:01] [#]} 41. Nc6 $1 {[%emt 0:00:04][%mdl 576] Clearance, Promotion. Black did not feel at home in the position after the opening.   Weighted Error Value: White=0.07 (flawless) /Black=0.35} 1-0